Cogmind - Beta 16 @@@ ROGUE MODE // 2025.11.22 @ 19:47:05 Player: Lazz Result: Destroyed by Y-54 Guardian with Flak Gun Performance ------------- Evolutions (3) 1500 Regions Visited (5) 1000 Robots Destroyed (60) 300 Value Destroyed (2129) 2129 Prototype IDs (5) 100 Alien Tech Used (0) 0 Bonus (238) 238 TOTAL SCORE: 5267 Bonus ------- High Alert Combat Kills 11 Follower Combat Kills 227 Cogmind --------- Core Integrity 0/700 Matter 108/300 Energy 100/100 System Corruption 6% Temperature Cool (18) Movement Core (750) Ox14 Location -7/Factory Parts ------- > --- POWER (1) -------- (None) > --- PROPULSION (2) --- (None) > --- UTILITY (7) ------ Improved Heat Sink High-capacity Storage Unit Core Analyzer > --- WEAPON (3) ------- Mini Assault Cannon > --- INVENTORY (20) --- Enhanced Nuclear Core Light Treads Light Treads Kinecellerator Drone Bay (2/2) Drone Bay (2/2) Heavy Machine Gun Assault Cannon Assault Cannon Assault Cannon Mini Assault Cannon Mini Assault Cannon Mini Grenade Launcher Mini Grenade Launcher Mining Laser Axe Chainsword PL-3XN's Ring of Power Peak State ------------ > --- POWER ------------ Improved Deuterium Engine > --- PROPULSION ------- VSS Leg Compact Wheel > --- UTILITY ---------- High-capacity Storage Unit Core Analyzer Hardened Medium Armor Plating Dynamic Insulation System > --- WEAPON ----------- Assault Rifle Mini Assault Cannon Mini Assault Cannon > --- INVENTORY -------- Enhanced Nuclear Core Light Treads Improved Carbon-fiber Leg Wheel Wheel Kinecellerator Drone Bay Drone Bay Heavy Machine Gun Assault Cannon Assault Cannon Assault Cannon Mini Assault Cannon Mini Assault Cannon Mini Grenade Launcher Mini Grenade Launcher Mining Laser Axe Chainsword PL-3XN's Ring of Power [Rating: 38] Favorites ----------- Power Ion Engine Engine Ion Engine Propulsion Light Treads Treads Light Treads Leg Improved Carbon-fiber Leg Wheel Wheel Utility High-capacity Storage Unit Device Seismic Detector Storage High-capacity Storage Unit Processor Improved Targeting Computer Protection Utility Shielding Weapon Mini Assault Cannon Energy Gun Heavy Laser Ballistic Gun Light Assault Rifle Ballistic Cannon Mini Assault Cannon Launcher Mini Grenade Launcher Special Weapon Mining Laser Slashing Weapon Axe Build | -11 -10 -9 -9 -8 -7 ------- Run | Yrd Mat Mat Sto Mat Fac Slots Evolved 6 | . . 2 . 2 2 Power . | . . . . . . Propulsion . | . . . . . . Utility 5 | . . 2 . 1 2 Weapon 1 | . . . . 1 . Parts Attached 57 | 7 7 2 7 3 31 Power 5 | 1 1 . 1 . 2 Engine 5 | 1 1 . 1 . 2 Core . | . . . . . . Reactor . | . . . . . . Propulsion 12 | 2 1 . 3 1 5 Treads 7 | 2 1 . 3 1 . Leg 2 | . . . . . 2 Wheel 3 | . . . . . 3 Hover . | . . . . . . Flight . | . . . . . . Utility 21 | 2 2 1 1 1 14 Device 10 | 1 1 1 . 1 6 Storage 2 | 1 1 . . . . Processor 4 | . . . . . 4 Hackware . | . . . . . . Protection 5 | . . . 1 . 4 Artifact . | . . . . . . Weapon 19 | 2 3 1 2 1 10 Energy Gun 6 | 1 3 . . . 2 Energy Cannon . | . . . . . . Ballistic Gun 4 | 1 . . 1 1 1 Ballistic Cannon 6 | . . 1 . . 5 Launcher 1 | . . . . . 1 Special Weapon 1 | . . . 1 . . Impact Weapon . | . . . . . . Slashing Weapon 1 | . . . . . 1 Piercing Weapon . | . . . . . . Special Melee Weapon . | . . . . . . Unidentified Prototypes 1 | . . . . . 1 Parts Lost 36 | . 4 . 1 . 31 Power 5 | . 1 . 1 . 3 Propulsion 10 | . . . . . 10 Utility 14 | . 1 . . . 13 Weapon 7 | . 2 . . . 5 Highest Loss Streak 6 | . 3 . 1 . 6 To Critical Strikes . | . . . . . . Average Backups 14 | 2 7 7 9 13 17 Power . | . 1 2 1 1 . Propulsion 5 | 1 3 4 5 7 5 Utility 2 | . . . 1 1 3 Weapon 6 | . 2 1 1 3 8 Tool/Special . | . . . . . . Unused Backups 11 | . . . . 1 10 Power 1 | . . . . . 1 Propulsion 1 | . . . . . 1 Utility 2 | . . . . 1 1 Weapon 7 | . . . . . 7 Tool/Special . | . . . . . . Average Slot Usage (%) 91 | . 95 75 94 88 90 Engine 6 | . 12 . 9 . 5 Treads 15 | . 28 22 22 18 11 Device 22 | . 12 20 22 27 23 Storage 8 | . 14 11 11 9 7 Processor 2 | . . . . . 3 Protection 9 | . . . 7 9 11 Energy Gun 4 | . 12 . . . 4 Ballistic Gun 6 | . 14 11 9 16 3 Ballistic Cannon 10 | . . 11 9 9 12 Peak Build Rating 38 | 7 7 9 14 22 38 Average Rating 25 | 5 6 8 11 19 32 On Entrance 9 | . 7 6 9 13 22 Avg Prop Armor Cover (%) 7 | . . . . . 7 Naked Turns . | . . . . . . Heaviest Build 70 | 11 48 46 54 61 70 Greatest Support 40 | 40 40 40 40 40 40 Greatest Overweight (x) 19 | . 1 1 1 1 19 Average Overweight (x) 1 | . . 1 1 1 1 Largest Inventory Capacity 20 | 8 20 20 20 20 20 Average Capacity 19 | 7 12 20 20 20 20 Most Carried 20 | 6 9 8 15 15 20 Average Carried 15 | 2 7 7 9 13 18 Final Capacity 20 | 8 20 20 20 20 20 Final Carried 18 | 6 9 7 15 15 18 Class Distribution -------------------- 40% | Scavenger-Gunner 22% | Mutant 12% | Scavenger-Mutant 11% | Gunner 7% | Commander-Tank 4% | Commander-Mutant Dominant Class ---------------- Mutant | -10/Materials Mutant | -9/Materials Scavenger-Mutant | -9/Storage Commander-Tank | -8/Materials Scavenger-Gunner | -7/Factory Resources | -11 -10 -9 -9 -8 -7 ----------- Run | Yrd Mat Mat Sto Mat Fac Matter Collected 1669 | 277 86 . 275 52 979 Remotely . | . . . . . . Salvage Created 2058 | 126 246 . 338 86 1262 Parts 109 | 5 14 . 20 4 66 Haulers Intercepted 5 | . . . 2 1 2 Recyclers Shooed 5 | 1 1 . 2 . 1 Parts Field Recycled . | . . . . . . Retrieved Matter . | . . . . . . Parts Self-Destructed . | . . . . . . Prevented . | . . . . . . Parts Restored . | . . . . . . Kills | -11 -10 -9 -9 -8 -7 ------- Run | Yrd Mat Mat Sto Mat Fac Combat Hostiles Destroyed 40 | . 6 . 5 1 28 Guns 14 | . 6 . . 1 7 Cannons 23 | . . . 5 . 18 AOE 3 | . . . . . 3 Classes Destroyed 12 | 3 1 . 3 . 5 Worker 3 | 1 . . 1 . 1 Builder 2 | . . . . . 2 Tunneler 1 | 1 . . . . . Hauler 5 | . . . 2 1 2 Recycler 3 | 1 . . . . 2 Watcher 2 | . . . 1 . 1 Swarmer 3 | . . . . . 3 Grunt 21 | . 6 . 1 . 14 Sentry 6 | . . . 4 1 1 Specialist 4 | . . . . . 4 Hunter 5 | . . . . . 5 Programmer 5 | . . . . . 5 Best Kill Streak 6 | 2 2 . 3 1 6 Combat Bots Only 3 | . 2 . 3 1 3 Max Kills in Single Turn 6 | 1 1 . 1 1 6 Gunslinging . | . . . . . . Exploded 2 | . . . . . 2 Melee . | . . . . . . Uniques/NPCs Destroyed . | . . . . . . Combat | -11 -10 -9 -9 -8 -7 -------- Run | Yrd Mat Mat Sto Mat Fac Hostile Shots Fired 455 | . 54 . 36 14 351 Missed 153 | . 21 . 10 6 116 Hits 302 | . 33 . 26 8 235 Projectile 302 | . 33 . 26 8 235 Critical Strikes 11 | . . . 2 2 7 Damage Taken 4368 | . 531 . 353 119 3365 Core 812 | . 68 . 39 . 705 Absorbed by Shields . | . . . . . . Redirected to Shielding 156 | . . . . . 156 Core Remaining (%) 90 | 100 72 . 90 100 . Volleys Fired 165 | 7 35 . 41 5 77 Largest 3 | 2 2 . 2 3 3 Hottest 151 | 60 60 . 130 73 151 Shots Fired 373 | 14 62 . 82 12 203 Gun 198 | 14 62 . 30 7 85 Cannon 156 | . . . 37 5 114 Launcher 2 | . . . . . 2 Special 17 | . . . 15 . 2 Kinetic 268 | 7 35 . 67 12 147 Thermal 100 | 7 24 . 15 . 54 Explosive 2 | . . . . . 2 Electromagnetic 3 | . 3 . . . . Robot Hit Streak 13 | 6 13 . 6 4 13 Robot Miss Streak 6 | 2 3 . 3 2 6 Penetration Max 1 | . . . . . 1 Secondary Targets 4 | . 2 . . . 2 Max Gunslinging Chain 1 | . 1 . . . 1 Shots Hit Robots 204 | 8 40 . 36 8 112 Core Hits 90 | 4 16 . 14 3 53 Critical Kills 1 | . . . . . 1 Critical Parts Destroyed . | . . . . . . Critical Strikes 7 | . . . . . 7 Burn 1 | . . . . . 1 Destroy 1 | . . . . . 1 Blast 5 | . . . . . 5 Melee Attacks 1 | . . . . . 1 Impact . | . . . . . . Slashing 1 | . . . . . 1 Piercing . | . . . . . . Sneak Attacks . | . . . . . . Combat Hostiles . | . . . . . . Follow-up Attacks . | . . . . . . Damage Inflicted 4881 | 76 435 . 519 122 3729 Guns 1772 | 74 383 . 128 41 1146 Cannons 2108 | . . . 343 81 1684 Explosions 928 | . 52 . . . 876 Melee . | . . . . . . Ramming 25 | 2 . . . . 23 Kinetic 2858 | 23 182 . 471 122 2060 Thermal 1696 | 51 229 . 48 . 1368 Explosive 278 | . . . . . 278 Electromagnetic 24 | . 24 . . . . Impact . | . . . . . . Slashing . | . . . . . . Piercing . | . . . . . . Highest Corruption 6 | . . . . . 6 Average Corruption 5 | . . . . . 5 Corruption Purged . | . . . . . . Corruption Blocked . | . . . . . . Effects 71 | . . . . . 71 Message Errors 18 | . . . . . 18 Matter Fused 13 | . . . . . 13 Heat Flow Errors 10 | . . . . . 10 Energy Discharges 11 | . . . . . 11 Parts Rejected 1 | . . . . . 1 Data Loss (minor) 5 | . . . . . 5 Data Loss (major) 2 | . . . . . 2 Misfires 7 | . . . . . 7 Alerts 3 | . . . . . 3 Weapon Failures 1 | . . . . . 1 Overload Shots . | . . . . . . Overflow Damage 246 | . 6 . . . 240 Projectiles 54 | . . . . . 54 Explosions 192 | . 6 . . . 186 Melee . | . . . . . . Knockbacks 17 | . . . 3 . 14 Impact . | . . . . . . Kinetic 16 | . . . 3 . 13 Secondary 1 | . . . . . 1 Self-Inflicted Damage 181 | . 46 . . . 135 Shots 3 | . 1 . . . 2 Rammed 3 | 1 . . . . 2 Targets Rammed 3 | 1 . . . . 2 Kicked . | . . . . . . Crushed . | . . . . . . Highest Temperature 230 | 40 153 . 15 11 230 Average Temperature 51 | 23 66 . 15 11 48 Received Heat Transfer 1173 | . 249 . 117 81 726 Siege Activations . | . . . . . . Martial Activations . | . . . . . . Shielding Activations . | . . . . . . Robots Disrupted . | . . . . . . Combat Hostiles . | . . . . . . Robots Corrupted . | . . . . . . Combat Hostiles . | . . . . . . Parts Fried . | . . . . . . Impact Corruptions . | . . . . . . Robots Melted . | . . . . . . Combat Hostiles . | . . . . . . Parts Melted 1 | . . . . . 1 Heat Transferred 2642 | 125 450 . 100 . 1967 Parts Sabotaged . | . . . . . . Parts Stolen . | . . . . . . Parts Stripped . | . . . . . . Power Chain Reactions 1 | . 1 . . . . Alert | -11 -10 -9 -9 -8 -7 ------- Run | Yrd Mat Mat Sto Mat Fac Maximum Alert Level 2 | . . . . . 2 Low Security (%) 89 | 100 100 100 100 100 83 Level 1 8 | . . . . . 13 Level 2 2 | . . . . . 3 Level 3 . | . . . . . . Level 4 . | . . . . . . Level 5 . | . . . . . . High Security . | . . . . . . Max Security . | . . . . . . Peak Influence 413 | 5 50 11 169 107 413 Initial 69 | . 3 11 . 69 25 Average 62 | 1 11 3 22 51 83 Influence Increases 1907 | 15 168 . 433 197 1094 Destroy 0b10 Robot/C 980 | . 120 . 200 100 560 Destroy 0b10 Robot/NC 90 | 15 . . 25 10 40 Destroy Leader 296 | . 40 . 76 34 146 Allied During Kill 132 | . . . 79 53 . Successful Hack 77 | . . . 42 . 35 Disable Machine 195 | . . . . . 195 Destroy Structure 122 | . 8 . 11 . 103 Lose Combat Pursuer 15 | . . . . . 15 Influence Decreases 1565 | 10 145 28 268 306 808 Entered New Map 146 | . 2 17 . 96 31 Time Decay 978 | 10 103 11 218 139 497 Lost Part 325 | . 40 . 10 . 275 Lost Ally 75 | . . . 40 30 5 Purge Threat 41 | . . . . 41 . Squads Dispatched 19 | . 2 . 1 1 15 Investigation 3 | . 1 . 1 . 1 Extermination 6 | . . . . . 6 Reinforcement 7 | . 1 . . 1 5 Assault . | . . . . . . Garrison 3 | . . . . . 3 Intercept . | . . . . . . Searches Triggered . | . . . . . . Construction Impeded 1 | . . . . . 1 Haulers Reinforced 1 | . . . . . 1 Active Scanning Responses . | . . . . . . Cargo Convoy Interrupts 1 | . . . . . 1 Stealth | -11 -10 -9 -9 -8 -7 --------- Run | Yrd Mat Mat Sto Mat Fac Distress Signals 2 | . . . . 1 1 Communications Jammed . | . . . . . . Distress Signals . | . . . . . . Times Spotted 58 | . 7 1 11 5 34 Peak Tracking Total 4 | . 3 1 3 3 4 Tactical Retreats 1 | . . . . . 1 Traps | -11 -10 -9 -9 -8 -7 ------- Run | Yrd Mat Mat Sto Mat Fac Traps Triggered 6 | . 2 . 1 . 3 Indirectly . | . . . . . . Trap Hack Attempts . | . . . . . . Triggered . | . . . . . . Disarmed . | . . . . . . Reprogrammed . | . . . . . . Reused . | . . . . . . Traps Extracted . | . . . . . . Installed . | . . . . . . Triggered . | . . . . . . Machines | -11 -10 -9 -9 -8 -7 ---------- Run | Yrd Mat Mat Sto Mat Fac Machines Disabled 13 | . . . . . 13 Max in Single Turn 5 | . . . . . 5 Machines Repaired . | . . . . . . Machines Dismantled . | . . . . . . Machines Sabotaged . | . . . . . . Overloaded Fab Kills . | . . . . . . Hacking | -11 -10 -9 -9 -8 -7 --------- Run | Yrd Mat Mat Sto Mat Fac Machines Accessed 14 | . . 1 5 1 7 Terminals 12 | . . 1 5 1 5 Fabricators . | . . . . . . Repair Stations . | . . . . . . Recycling Units 1 | . . . . . 1 Scanalyzers 1 | . . . . . 1 Garrison Access . | . . . . . . Total Hacks 36 | . . 5 16 2 13 Successful 15 | . . 1 8 1 5 Failed 21 | . . 4 8 1 8 Catastrophic 4 | . . 1 . 1 2 Database Lockouts . | . . . . . . Manual 5 | . . 4 1 . . Terminals 33 | . . 5 16 2 10 Fabricators . | . . . . . . Repair Stations . | . . . . . . Recycling Units 1 | . . . . . 1 Scanalyzers 2 | . . . . . 2 Garrison Access . | . . . . . . Terminal Hacks 13 | . . 1 8 1 3 Part Schematic 1 | . . . . . 1 Prototype ID Bank 2 | . . . 2 . . Open Door 1 | . . . 1 . . Open DSF 1 | . . . . . 1 Terminal Index 1 | . . . 1 . . Unreport Threat 1 | . . . . 1 . Locate Traps 1 | . . . 1 . . Zone Layout 5 | . . 1 3 . 1 Fabricator Hacks . | . . . . . . Repair Station Hacks . | . . . . . . Recycling Unit Hacks 1 | . . . . . 1 Process 1 | . . . . . 1 Scanalyzer 1 | . . . . . 1 Retrieve Study 1 | . . . . . 1 Garrison Access Hacks . | . . . . . . Unauthorized Hacks . | . . . . . . Terminals . | . . . . . . Fabricators . | . . . . . . Repair Stations . | . . . . . . Recycling Units . | . . . . . . Scanalyzers . | . . . . . . Garrison Access . | . . . . . . Data Cores Recovered . | . . . . . . Used . | . . . . . . Hacking Detections 12 | . . 1 4 1 6 Full Trace Events 3 | . . . 2 . 1 Feedback Events . | . . . . . . Feedback Blocked . | . . . . . . Robot Schematics Acquired . | . . . . . . Robots Built . | . . . . . . Authchips . | . . . . . . Time . | . . . . . . Total Robot Build Rating . | . . . . . . Part Schematics Acquired 1 | . . . . . 1 Parts Built . | . . . . . . Authchips . | . . . . . . Time . | . . . . . . Total Part Build Rating . | . . . . . . Part Studies Acquired 1 | . . . . . 1 Parts Repaired . | . . . . . . Time . | . . . . . . Parts Recycled . | . . . . . . Recycled Matter 14 | . . . . . 14 Retrieved Matter . | . . . . . . Retrieved Components . | . . . . . . Parts Scanalyzed . | . . . . . . Part Schematics Acquired . | . . . . . . Parts Damaged . | . . . . . . Bothacking | -11 -10 -9 -9 -8 -7 ------------ Run | Yrd Mat Mat Sto Mat Fac Used RIF Installer . | . . . . . . Robots Hacked . | . . . . . . Non-combat . | . . . . . . Combat . | . . . . . . Robot Hacks Applied . | . . . . . . Relay Couplers Released . | . . . . . . Fabnet Peak Effective % . | . . . . . . Robots Rewired . | . . . . . . Allies Hacked . | . . . . . . Hacks Repelled . | . . . . . . Allies | -11 -10 -9 -9 -8 -7 -------- Run | Yrd Mat Mat Sto Mat Fac Total Allies 10 | . . . 10 . . Largest Group 10 | . . . 10 8 6 Highest-Rated Group 88 | . . . 88 64 48 Highest-Rated Ally 16 | . . . 16 8 8 Total Orders 3 | . . . . 2 1 EXPLORE 3 | . . . . 2 1 Ally Attacks 67 | . . . 23 40 4 Total Damage 579 | . . . 202 342 35 Kills 11 | . . . 6 5 . Allies Corrupted . | . . . . . . Allies Melted . | . . . . . . Intel | -11 -10 -9 -9 -8 -7 ------- Run | Yrd Mat Mat Sto Mat Fac Active Infowar (turns) 3920 | 21 304 65 879 359 2292 Seismic 3920 | 21 304 65 879 359 2292 Robot Analysis Total . | . . . . . . Derelict Logs Recovered . | . . . . . . Drone Launches 2 | . . . . 2 . Drone Recoveries . | . . . . . . Exploration | -11 -10 -9 -9 -8 -7 ------------- Run | Yrd Mat Mat Sto Mat Fac Turns Passed 4869 | 108 348 65 879 359 3110 Spaces Moved 1786 | 46 125 27 219 138 1231 Core 6 | 2 . . . . 4 Treads 1563 | 44 125 27 219 138 1010 Legs 1 | . . . . . 1 Wheels 216 | . . . . . 216 Hover . | . . . . . . Flight . | . . . . . . Fastest Speed 50 | 50 160 240 240 240 140 Average Speed 214 | 155 177 240 240 240 212 Slowest Speed 1000 | 160 240 240 240 240 1000 Overloaded Moves . | . . . . . . Propulsion Burnouts . | . . . . . . Robots Hopped . | . . . . . . Potential Cave-ins . | . . . . . . Cave-ins Triggered . | . . . . . . Exploration Rate (%) 22 | 4 26 6 39 23 34 Regions Visited 5 Branch Regions 1 Pre-discovered Areas . | . . . . . . Known Exits Taken . | . . . . . . Unknown Exits Taken 5 | 1 1 1 1 1 . Scrap Searched . | . . . . . . Spaces Dug 26 | . . . 11 . 15 Terrain Destroyed 130 | . 7 . 11 . 112 Melee 1 | . . . . . 1 Projectile 35 | . . . 11 . 24 AOE 94 | . 7 . . . 87 Terrain Rammed . | . . . . . . Walls Destroyed . | . . . . . . Machines Disabled . | . . . . . . Actions | -11 -10 -9 -9 -8 -7 --------- Run | Yrd Mat Mat Sto Mat Fac Total 2469 | 66 197 28 463 157 1558 Wait 402 | . 26 . 189 8 179 Move 1781 | 45 124 26 218 137 1231 Hop . | . . . . . . Pick Up 34 | 6 2 . 5 1 20 Fast Attach 23 | 7 1 . 1 . 14 Attach 20 | . 1 2 1 2 14 Detach 1 | . . . . . 1 Swap 24 | . 5 . 8 2 9 Drop 10 | . 3 . . 1 6 Fire 165 | 7 35 . 41 5 77 Melee 1 | . . . . . 1 Ram 2 | . . . . . 2 Kick . | . . . . . . Crush 1 | 1 . . . . . Escape Stasis 4 | . . . . . 4 Rewire . | . . . . . . Trap . | . . . . . . Miscellaneous 1 | . . . . 1 . Route ------- -11/Scrapyard -10/Materials -9/Materials -9/Storage -8/Materials -7/Factory History --------- Turn | Location | Event 21 | -11/Scrapyard | Discovered new exit (range 15) 109 | -11/Scrapyard | Entered Materials 314 | -10/Materials | Build established: Mutant 417 | -10/Materials | Discovered new exit (range 6) 457 | -10/Materials | Entered another Materials area 457 | -9/Materials | Evolved 2 slots: Utility x2 458 | -9/Materials | Lost 3 parts (1p2w) 474 | -9/Materials | Discovered new exit (range 14) 522 | -9/Materials | Entered Storage 1086 | -9/Storage | Build established: Scavenger-Mutant 1266 | -9/Storage | Assisted by bots powering up and referring to "LRC-V3" 1350 | -9/Storage | Discovered new exit (range 5) 1401 | -9/Storage | Entered Materials 1401 | -8/Materials | Accompanied by 8 allies 1401 | -8/Materials | Evolved 2 slots: Utility x1, Weapon x1 1705 | -8/Materials | Discovered new exit (range 21) 1760 | -8/Materials | Entered Factory 1760 | -7/Factory | Accompanied by 7 allies 1760 | -7/Factory | Evolved 2 slots: Utility x2 1764 | -7/Factory | Build established: Commander-Tank 1952 | -7/Factory | Murdered 4 allies 2232 | -7/Factory | Build established: Scavenger-Gunner 2664 | -7/Factory | Lost 3 parts (1n1u1w) 2841 | -7/Factory | Cargo convoy interrupted 3021 | -7/Factory | Found PL-3XN's Ring of Power 4045 | -7/Factory | Garrison activated, responded to threat 4116 | -7/Factory | Build established: Gunner 4317 | -7/Factory | Lost 3 parts (3u) 4328 | -7/Factory | Core integrity fell below 50% 4380 | -7/Factory | Lost 6 parts (1p1n3u1w) 4626 | -7/Factory | Lost 3 parts (2n1w) 4627 | -7/Factory | Core integrity fell below 20% 4661 | -7/Factory | Lost 3 parts (1n2u) 4870 | -7/Factory | Destroyed by Y-54 Guardian with Flak Gun Last Messages --------------- 04682_ R-06 Scavenger collects Lgt. Treads+. 04706_ Acquired 42 matter. 04709_ Acquired Imp. Heat Sink. 04713_ Acquired Lgt. Treads+. 04715_ System corrupted: Heat flow error (+254). 04744_ System corrupted: Matter fused (-8). 04774_ System corrupted: Heat flow error (+278). 04791_ GGUGDHQZPPNE=8R8#IB3M,HO #C